bitfinex/quotes_SOLUSD_20230120
["timestamp","ask_amount","ask_price","bid_price","bid_amount"]
[1674237764315,5.16875,22.862,22.844,0.00182305]
[1674237764934,5.16875,22.862,22.85,25.9]
[1674237765663,5.16875,22.862,22.851,37.0]
[1674237766101,5.16875,22.862,22.852,5.59790683]
[1674237766302,5.16875,22.862,22.853,37.0]
[1674237766637,10.0,22.868,22.854,17.96]
[1674237766847,10.0,22.871,22.86,25.7]
[1674237767054,10.0,22.871,22.861,37.0]
[1674237767245,10.0,22.871,22.862,20.0]
[1674237767458,15.16875,22.871,22.851,20.0]
[1674237767695,5.16875,22.87,22.844,0.00182305]
[1674237767880,10.0,22.868,22.84,23.70182305]
[1674237768087,38.93875,22.867,22.84,25.9]
[1674237768302,10.0,22.865,22.841,11.28142985]
[1674237768531,10.0,22.865,22.84,25.9]
[1674237768532,38.93875,22.864,22.84,25.9]
[1674237768721,10.0,22.862,22.83,25.9]
[1674237768930,37.97875,22.861,22.83,25.9]
[1674237769154,5.16875,22.86,22.837,20.9841403]
[1674237769351,33.78,22.859,22.837,9.70271045]
[1674237769683,10.0,22.857,22.837,9.70271045]
[1674237769921,38.94875,22.856,22.837,0.00271045]
[1674237770085,5.16875,22.855,22.837,0.00271045]
[1674237770504,33.79,22.854,22.837,0.00271045]
[1674237770721,10.0,22.852,22.837,0.00271045]
[1674237770944,5.16875,22.851,22.837,0.00271045]
[1674237771683,10.0,22.852,22.84,25.9]
[1674237771998,10.0,22.866,22.841,10.0]
[1674237772211,10.0,22.866,22.84,103.64]
[1674237772522,10.0,22.866,22.842,5.76798626]
[1674237772711,10.0,22.866,22.843,20.96]
[1674237772917,10.0,22.866,22.844,17.0]
[1674237773127,10.0,22.873,22.846,7.10819733]
[1674237773349,10.0,22.873,22.86,129.42]
[1674237773565,10.0,22.879,22.861,17.96]
[1674237773769,10.0,22.879,22.87,25.7]
[1674237773986,10.0,22.879,22.871,37.0]
[1674237774600,10.0,22.879,22.86,25.67]
[1674237774811,10.0,22.879,22.84,25.8]
[1674237774812,9.5,22.879,22.85,25.69]
[1674237775021,37.95875,22.878,22.85,25.69]
[1674237775231,5.16875,22.877,22.85,25.69]
[1674237775458,32.79,22.876,22.85,25.69]
[1674237775657,32.79,22.876,22.86,25.83]
[1674237775658,10.0,22.876,22.86,25.83]
[1674237775861,37.95875,22.875,22.85,25.85]
[1674237776077,5.16875,22.874,22.85,25.85]
[1674237776287,10.0,22.872,22.85,25.85]
[1674237776488,37.96875,22.871,22.85,25.85]
[1674237776722,5.16875,22.87,22.85,25.85]
[1674237777648,5.16875,22.87,22.851,20.0]
[1674237777863,10.0,22.872,22.86,25.78]
[1674237778185,5.16875,22.871,22.861,20.0]
[1674237778387,32.8,22.87,22.861,20.0]
[1674237778591,5.16875,22.869,22.861,20.0]
[1674237778808,5.16875,22.869,22.841,20.0]
[1674237779016,5.16875,22.869,22.85,25.78]
[1674237779259,5.16875,22.869,22.851,20.0]
[1674237780075,32.8,22.868,22.851,20.0]
[1674237780285,32.8,22.868,22.84,103.34]
[1674237780286,5.16875,22.867,22.84,25.8]
[1674237780509,49.81,22.866,22.83,25.9]
[1674237780700,15.16875,22.865,22.83,25.9]
[1674237780911,37.97875,22.864,22.83,25.9]
[1674237781125,22.16875,22.863,22.83,25.9]
[1674237781340,38.93875,22.862,22.83,25.9]
[1674237781557,5.16875,22.861,22.83,25.9]
[1674237781762,5.16875,22.861,22.84,25.7]
[1674237781763,10.0,22.86,22.84,25.7]
[1674237781976,5.16875,22.861,22.85,25.85]
[1674237782182,10.0,22.865,22.85,25.85]
[1674237782503,112.3764,22.882,22.851,11.29300252]
[1674237782711,112.3764,22.882,22.86,25.9]
[1674237782712,145.1564,22.882,22.86,25.9]
[1674237782936,10.0,22.88,22.861,17.96]
[1674237783120,10.0,22.88,22.862,20.0]
[1674237783326,10.0,22.88,22.863,17.96]
[1674237783542,10.0,22.88,22.864,26.6743036]
[1674237783767,10.0,22.89,22.865,17.96]
[1674237783955,7.63431286,22.92,22.865,17.96]
[1674237783956,152.4056,22.912,22.87,129.44]
[1674237784165,152.4056,22.912,22.88,129.54]
[1674237784376,152.4056,22.912,22.881,20.0]
[1674237784586,10.0,22.911,22.882,0.96]
[1674237784793,32.74,22.91,22.882,0.96]
[1674237785537,10.0,22.909,22.882,0.96]
[1674237785758,32.75,22.908,22.882,0.96]
[1674237786167,32.75,22.908,22.882,17.96]
[1674237786596,10.0,22.907,22.882,17.96]
[1674237786795,32.77,22.895,22.87,25.69]
[1674237787005,37.93875,22.893,22.87,25.69]
[1674237787225,5.16875,22.892,22.87,25.69]
[1674237787431,32.77,22.891,22.87,25.69]
[1674237787647,15.16875,22.89,22.87,25.69]
[1674237788488,10.0,22.888,22.86,25.91]
[1674237788705,37.94875,22.887,22.86,25.91]
[1674237788908,10.0,22.885,22.86,25.91]
[1674237789129,37.94875,22.884,22.86,25.91]
[1674237789447,5.16875,22.883,22.86,25.91]
[1674237789877,32.78,22.882,22.86,25.91]
[1674237790095,5.16875,22.881,22.86,25.91]
[1674237790407,10.0,22.883,22.85,25.9]
[1674237790609,5.16875,22.88,22.85,25.9]
[1674237790823,49.79,22.879,22.85,25.9]
[1674237791137,10.0,22.877,22.85,25.9]
[1674237791348,54.95875,22.876,22.84,25.7]
[1674237791549,6.12875,22.875,22.837,0.00271045]
[1674237791761,47.96875,22.874,22.85,25.78]
[1674237791963,47.96875,22.874,22.84,103.39]
[1674237791964,5.16875,22.873,22.84,109.21136418]
[1674237792174,5.16875,22.873,22.841,7.45000808]
[1674237792385,37.96875,22.873,22.841,7.45000808]
[1674237792590,10.0,22.872,22.841,7.45000808]
[1674237792815,15.16875,22.872,22.841,7.45000808]
[1674237793014,15.16875,22.872,22.84,103.42]
[1674237793223,37.96875,22.871,22.841,20.0]
[1674237793434,10.0,22.869,22.841,20.0]
[1674237793649,37.96875,22.868,22.84,25.85]
[1674237793850,23.12875,22.867,22.837,0.00271045]
[1674237794062,37.97875,22.866,22.837,0.00271045]
[1674237794399,23.12875,22.865,22.837,0.00271045]
[1674237794582,183.47875,22.864,22.837,0.00271045]
[1674237794799,23.12875,22.863,22.837,0.00271045]
[1674237795003,37.97875,22.862,22.837,0.00271045]
[1674237795213,10.0,22.86,22.83,24.90271045]
[1674237795419,10.0,22.858,22.82,25.82]
[1674237795651,55.94875,22.857,22.82,25.82]
[1674237795866,5.16875,22.856,22.82,25.82]
[1674237796093,33.78,22.855,22.82,25.82]
[1674237796291,5.16875,22.854,22.83,25.82]
[1674237796477,5.16875,22.854,22.82,103.75]
[1674237796478,5.16875,22.854,22.821,6.82676032]
[1674237796806,5.16875,22.854,22.822,11.29300252]
[1674237797020,5.16875,22.854,22.823,10.0]
[1674237797547,5.16875,22.854,22.82,103.75]
[1674237797861,32.83,22.853,22.82,25.82]
[1674237798070,32.83,22.853,22.81,25.85]
[1674237798480,15.16875,22.851,22.81,25.85]
[1674237798695,15.16875,22.851,22.8,103.45]
[1674237798696,140.66875,22.849,22.8,25.88]
[1674237798912,5.16875,22.847,22.8,25.88]
[1674237799097,10.0,22.845,22.8,25.38]
[1674237799307,5.16875,22.843,22.8,25.38]
[1674237799526,25.77,22.84,22.79,25.9]
[1674237799858,38.97875,22.839,22.79,25.9]
[1674237800048,25.9,22.83,22.79,25.9]
[1674237800258,25.9,22.83,22.78,25.82]
[1674237800259,190.52875,22.829,22.78,25.82]
[1674237800593,25.9,22.82,22.77,25.7]
[1674237800783,176.48635,22.819,22.77,25.7]
[1674237800994,5.16875,22.817,22.77,25.7]
[1674237801212,53.84,22.816,22.77,25.7]
[1674237801426,10.0,22.814,22.77,25.7]
[1674237801738,5.16875,22.812,22.77,25.7]
[1674237801948,32.89,22.811,22.78,25.82]
[1674237802158,23.12875,22.81,22.78,25.82]
[1674237802377,10.0,22.808,22.76,25.88]
[1674237802589,56.01875,22.807,22.761,4.68493797]
[1674237802810,5.16875,22.806,22.762,10.0]
[1674237803117,42.9,22.805,22.77,25.85]
[1674237803306,5.16875,22.804,22.771,10.0]
[1674237803634,32.9,22.803,22.771,21.29300252]
[1674237803959,5.16875,22.803,22.78,25.69]
[1674237804274,10.0,22.805,22.77,25.78]
[1674237804487,115.1183,22.802,22.77,25.78]
[1674237804704,10.0,22.8,22.78,25.9]
[1674237805015,5.16875,22.799,22.79,25.9]
[1674237805204,10.0,22.808,22.79,25.9]
[1674237805414,10.0,22.808,22.782,10.0]
[1674237805619,10.0,22.808,22.783,0.96]
[1674237806059,10.0,22.808,22.78,103.81]
[1674237806060,10.0,22.808,22.78,25.9]
[1674237806376,10.0,22.808,22.79,25.78]
[1674237807196,10.0,22.82,22.782,14.0241311]
[1674237807424,10.0,22.82,22.8,25.9]
[1674237807642,15.16875,22.82,22.801,17.0]
[1674237807855,5.16875,22.819,22.79,25.9]
[1674237808161,32.88,22.818,22.79,25.9]
[1674237808481,10.0,22.816,22.79,25.9]
[1674237808699,38.04875,22.815,22.79,25.9]
[1674237809005,5.16875,22.814,22.79,25.9]
[1674237809193,32.88,22.813,22.791,20.0]
[1674237809402,15.16875,22.812,22.791,20.0]
[1674237809619,5.16875,22.811,22.791,20.0]
[1674237809833,5.16875,22.811,22.78,25.9]
[1674237810042,5.16875,22.811,22.77,25.78]
[1674237810043,50.85,22.81,22.77,25.78]
[1674237810267,10.0,22.808,22.77,25.78]
[1674237810461,170.25625,22.807,22.77,25.78]
[1674237810671,5.16875,22.806,22.77,25.78]
[1674237810880,33.86,22.805,22.77,25.78]
[1674237811101,5.16875,22.804,22.77,25.78]
[1674237811294,60.86,22.803,22.77,25.78]
[1674237811511,22.16875,22.802,22.77,25.78]
[1674237811721,39.02875,22.801,22.77,25.78]
[1674237811944,5.16875,22.8,22.77,25.78]
[1674237812155,50.86,22.799,22.76,25.88]
[1674237812380,15.16875,22.798,22.76,25.88]
[1674237812596,56.03875,22.797,22.76,25.88]
[1674237812904,5.16875,22.796,22.76,25.88]
[1674237813121,10.0,22.794,22.76,25.88]
[1674237813316,38.07875,22.793,22.76,25.88]
[1674237813521,23.12875,22.792,22.76,25.88]
[1674237813726,38.08875,22.791,22.76,25.88]
[1674237813945,23.12875,22.79,22.76,25.88]
[1674237814149,48.08875,22.789,22.76,25.88]
[1674237814360,48.08875,22.789,22.75,25.9]
[1674237814361,22.12875,22.788,22.75,25.9]
[1674237814589,38.08875,22.787,22.75,25.9]
[1674237814800,15.16875,22.786,22.75,25.9]
[1674237814992,38.08875,22.785,22.75,25.9]
[1674237815202,15.16875,22.784,22.751,10.0]
[1674237815422,15.16875,22.784,22.76,25.9]
[1674237816268,5.16875,22.784,22.77,25.9]
[1674237816593,10.0,22.786,22.771,17.96]
[1674237816806,10.0,22.786,22.772,20.0]
[1674237816990,10.0,22.786,22.773,17.96]
[1674237817319,10.0,22.786,22.774,20.0]
[1674237817857,10.0,22.786,22.741,10.0]
[1674237817858,10.0,22.786,22.76,25.9]
[1674237818161,10.0,22.784,22.76,25.9]
[1674237818352,15.16875,22.784,22.76,25.9]
[1674237818563,15.16875,22.784,22.77,25.7]
[1674237818779,10.0,22.784,22.77,25.7]
[1674237819208,10.0,22.784,22.771,0.96]
[1674237819422,10.0,22.784,22.771,17.96]
[1674237819851,10.0,22.784,22.772,20.0]
[1674237820050,10.0,22.784,22.773,0.96]
[1674237820245,10.0,22.784,22.773,17.96]
[1674237820454,10.0,22.784,22.774,20.0]
[1674237820671,10.0,22.784,22.775,17.0]
[1674237820889,10.0,22.786,22.776,0.96]
[1674237821206,10.0,22.796,22.776,20.96]
[1674237821428,10.0,22.796,22.78,25.9]
[1674237821619,10.0,22.796,22.781,17.96]
[1674237821835,10.0,22.796,22.782,20.0]
[1674237822160,10.0,22.796,22.783,17.0]
[1674237822366,10.0,22.796,22.784,20.0]
[1674237822586,10.0,22.796,22.782,20.0]
[1674237823081,10.0,22.796,22.781,20.0]
[1674237823724,10.0,22.796,22.77,25.9]
[1674237823952,15.16875,22.791,22.77,25.9]
[1674237824874,10.0,22.796,22.78,25.9]
[1674237825517,10.0,22.796,22.781,17.96]
[1674237825711,10.0,22.796,22.781,17.0]
[1674237827095,32.91,22.795,22.77,25.82]
[1674237827311,5.16875,22.793,22.77,25.82]
[1674237827504,32.91,22.792,22.77,25.82]
[1674237827720,6.12875,22.791,22.76,25.9]
[1674237827931,10.0,22.789,22.76,25.9]
[1674237828277,39.04875,22.788,22.76,25.9]
[1674237828582,10.0,22.786,22.76,25.9]
[1674237828773,10.0,22.784,22.76,25.9]
[1674237828985,5.16875,22.783,22.76,25.9]
[1674237829184,42.93,22.782,22.75,25.83]
[1674237829607,5.16875,22.781,22.76,25.78]
[1674237830027,5.16875,22.781,22.75,25.9]
[1674237830347,33.89,22.78,22.75,25.9]
[1674237830555,10.0,22.778,22.75,25.9]
[1674237830779,38.10875,22.777,22.74,24.9]
[1674237830993,23.12875,22.776,22.74,24.9]
[1674237831201,48.10875,22.775,22.74,24.4]
[1674237831412,6.12875,22.774,22.74,24.4]
[1674237831605,10.0,22.772,22.74,24.4]
[1674237831815,39.06875,22.771,22.74,24.4]
[1674237832143,15.16875,22.77,22.74,24.4]
[1674237832355,39.07875,22.769,22.74,24.4]
[1674237832574,5.16875,22.768,22.74,24.4]
[1674237832785,33.91,22.767,22.74,24.4]
[1674237832967,5.16875,22.766,22.74,24.4]
[1674237833179,5.16875,22.766,22.74,37.05017167]
[1674237833387,32.95,22.765,22.74,24.4]
[1674237833625,5.16875,22.764,22.74,24.4]
[1674237834035,10.0,22.762,22.74,24.4]
[1674237834232,39.08875,22.761,22.73,24.9]
[1674237834442,5.16875,22.76,22.73,24.9]
[1674237834884,5.16875,22.76,22.732,10.0]
[1674237835075,0.96,22.759,22.732,10.0]
[1674237835285,32.96,22.761,22.732,10.0]
[1674237835286,5.16875,22.758,22.732,10.0]
[1674237835496,0.96,22.757,22.73,24.9]
[1674237835700,5.16875,22.756,22.73,24.9]
[1674237835925,33.93,22.755,22.73,24.9]
[1674237836140,15.16875,22.754,22.73,24.9]
[1674237836347,5.16875,22.753,22.724,12.65017167]
[1674237836663,5.16875,22.753,22.723,87.8336913]
[1674237836664,5.16875,22.753,22.731,12.65017167]
[1674237837061,10.0,22.751,22.723,87.8336913]
[1674237837289,38.14875,22.75,22.724,12.65017167]
[1674237837501,5.16875,22.749,22.73,12.65017167]
[1674237837919,33.94,22.748,22.723,87.8336913]
[1674237838132,15.16875,22.747,22.73,12.65017167]
[1674237838331,6.12875,22.746,22.73,12.65017167]
[1674237838538,5.16875,22.745,22.73,12.65017167]
[1674237838976,5.16875,22.745,22.73,38.35017167]
[1674237839395,10.0,22.747,22.73,38.35017167]
[1674237839601,10.0,22.752,22.731,22.65017167]
[1674237839816,10.0,22.758,22.732,0.96]
[1674237840042,10.0,22.758,22.74,25.83]
[1674237840249,10.0,22.758,22.733,12.65017167]
[1674237840448,15.16875,22.754,22.741,12.65017167]
[1674237840659,10.0,22.754,22.741,12.65017167]
[1674237840879,10.0,22.754,22.742,17.0]
[1674237841078,10.0,22.754,22.743,20.0]
[1674237841280,10.0,22.754,22.743,12.65017167]
[1674237841507,38.13875,22.753,22.73,25.9]
[1674237841727,5.16875,22.752,22.731,12.65017167]
[1674237841936,10.0,22.751,22.731,12.65017167]
[1674237842251,38.14875,22.75,22.731,12.65017167]
[1674237842442,5.16875,22.749,22.731,12.65017167]
[1674237842874,10.0,22.748,22.731,12.65017167]
[1674237843073,5.16875,22.747,22.731,12.65017167]
[1674237843494,0.96,22.746,22.729,1.03142629]
[1674237843707,38.14875,22.745,22.729,1.03142629]
[1674237843915,10.0,22.743,22.729,0.00142629]
[1674237844127,39.11875,22.742,22.729,0.00142629]
[1674237844346,5.16875,22.741,22.729,0.00142629]
[1674237844554,33.95,22.74,22.729,0.00142629]
[1674237844760,15.16875,22.739,22.729,0.00142629]
[1674237844958,5.16875,22.738,22.729,0.00142629]
[1674237846028,10.0,22.736,22.71,25.9]
[1674237846257,39.12875,22.735,22.71,25.9]
[1674237846429,5.16875,22.734,22.71,25.9]
[1674237846642,43.0,22.733,22.71,25.9]
[1674237846850,10.0,22.731,22.71,25.9]
[1674237847077,5.16875,22.73,22.71,25.9]
[1674237847480,5.16875,22.73,22.711,12.65017167]
[1674237847689,10.0,22.731,22.72,25.9]
[1674237847918,10.0,22.736,22.72,25.9]
[1674237848135,10.0,22.746,22.721,12.65017167]
[1674237848327,10.0,22.76,22.722,21.58946779]
[1674237848662,10.0,22.76,22.74,129.08]
[1674237848849,123.8963,22.77,22.741,37.96]
[1674237849064,123.8963,22.77,22.742,10.0]
[1674237849289,123.8963,22.77,22.743,37.96]
[1674237849480,113.8963,22.77,22.744,7.64492975]
[1674237849688,113.8963,22.77,22.745,37.96]
[1674237850015,10.0,22.769,22.746,0.96]
[1674237850228,10.0,22.769,22.746,30.61017167]
[1674237850435,10.0,22.769,22.747,12.65017167]
[1674237850643,10.0,22.769,22.748,37.96]
[1674237850971,10.0,22.769,22.749,22.65017167]
[1674237851169,10.0,22.773,22.75,37.96]
[1674237851368,10.0,22.773,22.76,25.9]
[1674237851706,10.0,22.773,22.761,37.0]
[1674237852440,10.0,22.773,22.761,20.0]
[1674237852621,10.0,22.773,22.751,20.0]
[1674237852836,10.0,22.773,22.75,25.7]
[1674237853043,38.00928,22.772,22.74,25.69]
[1674237853275,5.06928,22.771,22.74,25.69]
[1674237853490,32.95,22.77,22.74,25.69]
[1674237853674,15.06928,22.769,22.74,25.69]
[1674237853885,32.95,22.768,22.74,25.69]
[1674237854115,48.01928,22.769,22.74,38.34017167]
[1674237854327,0.96,22.768,22.74,25.69]
[1674237854518,10.0,22.766,22.74,25.69]
[1674237854728,10.0,22.766,22.724,17.5742048]
[1674237854729,33.91,22.765,22.73,25.9]
[1674237854941,32.06928,22.764,22.73,25.9]
[1674237855166,38.98928,22.763,22.73,25.9]
[1674237855480,10.0,22.778,22.74,103.61]
[1674237855695,5.06928,22.774,22.74,103.61]
[1674237856002,10.0,22.778,22.742,6.07797098]
[1674237856222,10.0,22.778,22.76,25.9]
[1674237856441,10.0,22.778,22.761,20.0]
[1674237856629,10.0,22.778,22.761,37.0]
[1674237856841,10.0,22.778,22.762,12.65017167]
[1674237857052,10.0,22.784,22.763,17.96]
[1674237857280,10.0,22.784,22.764,20.0]
[1674237857600,10.0,22.786,22.765,17.46]
[1674237857789,10.0,22.786,22.767,10.0]
[1674237857995,10.0,22.786,22.768,37.0]
[1674237858225,10.0,22.786,22.768,49.65017167]
[1674237858436,32.9,22.8,22.769,12.65017167]
[1674237858628,10.0,22.801,22.77,42.69]
[1674237858837,10.0,22.799,22.77,42.9]
[1674237859170,32.91,22.798,22.771,17.0]
[1674237859381,32.91,22.798,22.78,25.85]
[1674237859578,10.0,22.797,22.78,25.85]
[1674237859784,32.91,22.796,22.78,25.85]
[1674237860115,32.91,22.796,22.772,12.65017167]
[1674237860311,32.91,22.796,22.773,20.0]
[1674237860523,27.91,22.796,22.773,20.0]
[1674237860728,10.0,22.795,22.774,12.65017167]
[1674237860953,10.0,22.793,22.774,12.65017167]
[1674237861263,32.91,22.792,22.775,20.0]
[1674237861472,32.91,22.792,22.776,17.0]
[1674237861802,10.0,22.793,22.78,25.78]
[1674237862002,10.0,22.795,22.781,17.0]
[1674237862215,10.0,22.799,22.782,20.0]
[1674237862417,32.89,22.811,22.783,17.96]
[1674237862624,10.0,22.812,22.784,20.0]
[1674237862839,10.0,22.812,22.785,10.96]
[1674237863166,10.0,22.812,22.8,25.9]
[1674237863368,10.0,22.812,22.801,37.0]
[1674237863694,10.0,22.812,22.802,0.96]
[1674237863901,10.0,22.812,22.802,13.61017167]
[1674237864110,10.0,22.823,22.803,83.88885217]
[1674237864111,9.5,22.823,22.803,83.88885217]
[1674237864300,9.5,22.823,22.804,0.96]
[1674237864513,9.5,22.823,22.804,50.61017167]
[1674237864725,9.5,22.823,22.805,46.88885217]
[1674237864930,32.86,22.833,22.806,37.96]
[1674237865142,10.0,22.834,22.806,84.84885217]
[1674237865367,10.0,22.834,22.82,25.7]
[1674237865580,32.84,22.846,22.821,37.96]
[1674237865894,10.0,22.845,22.83,25.9]
[1674237866106,10.0,22.845,22.831,20.0]
[1674237866421,10.0,22.845,22.831,32.65017167]
[1674237867036,10.0,22.845,22.832,17.0]
[1674237867365,10.0,22.845,22.833,20.0]
[1674237867581,10.0,22.845,22.833,32.65017167]
[1674237867777,10.0,22.845,22.834,17.0]
[1674237867981,10.0,22.845,22.835,20.0]
[1674237868197,10.0,22.845,22.836,17.0]
[1674237868403,10.0,22.845,22.82,25.7]
[1674237868618,10.0,22.843,22.82,25.7]
[1674237868832,32.84,22.842,22.82,25.7]
[1674237869241,5.06928,22.841,22.81,25.9]
[1674237869451,32.85,22.84,22.81,25.9]
[1674237869658,10.0,22.838,22.81,25.9]
[1674237869880,32.85,22.837,22.81,25.9]
[1674237870711,10.0,22.836,22.81,25.9]
[1674237871046,10.0,22.836,22.805,34.2386805]
[1674237871047,55.87928,22.835,22.805,34.2386805]
[1674237871236,15.06928,22.834,22.8,25.65]
[1674237871568,10.0,22.832,22.8,25.65]
[1674237871778,32.86,22.831,22.81,25.78]
[1674237872193,10.0,22.83,22.81,25.78]
[1674237872933,10.0,22.83,22.8,25.65]
[1674237872934,5.06928,22.829,22.8,25.65]
[1674237873126,33.82,22.828,22.8,25.65]
[1674237873338,5.06928,22.827,22.8,25.65]
[1674237873545,10.0,22.825,22.8,25.65]
[1674237873758,33.83,22.824,22.8,25.65]
[1674237873976,38.89928,22.824,22.8,25.65]
[1674237874190,10.0,22.823,22.8,25.65]
[1674237874402,33.83,22.822,22.8,25.65]
[1674237874610,10.0,22.821,22.8,25.65]
[1674237874827,33.83,22.82,22.8,25.65]
[1674237875020,10.0,22.819,22.79,25.85]
[1674237875232,33.84,22.818,22.79,25.85]
[1674237875446,5.06928,22.817,22.79,25.85]
[1674237875660,42.88,22.816,22.79,25.85]
[1674237875865,10.0,22.815,22.79,25.85]
[1674237876217,10.0,22.815,22.78,103.53]
[1674237876218,6.02928,22.814,22.78,59.9286805]
[1674237876426,37.94928,22.813,22.78,25.69]
[1674237876720,16.02928,22.812,22.78,25.69]
[1674237876935,54.95928,22.811,22.78,25.69]
[1674237877126,15.06928,22.81,22.78,25.69]
[1674237877332,32.89,22.809,22.78,25.69]
[1674237877558,15.06928,22.81,22.79,25.82]
[1674237877764,0.96,22.809,22.79,25.82]
[1674237877970,10.0,22.808,22.79,25.83]
[1674237878181,10.0,22.808,22.791,20.0]
[1674237878592,10.0,22.808,22.79,25.7]
[1674237878820,10.0,22.808,22.791,20.0]
[1674237879036,10.0,22.81,22.792,10.0]
[1674237879221,10.0,22.81,22.793,20.0]
[1674237879768,10.0,22.81,22.794,17.96]
[1674237879986,10.0,22.81,22.795,20.0]
[1674237880395,10.0,22.824,22.796,17.96]
[1674237880599,10.0,22.824,22.8,25.85]
[1674237880826,10.0,22.824,22.81,25.9]
[1674237881043,10.0,22.824,22.811,17.0]
[1674237881252,10.0,22.824,22.812,20.0]
[1674237881568,10.0,22.824,22.813,17.0]
[1674237881882,10.0,22.824,22.814,20.0]
[1674237882521,10.0,22.824,22.815,17.96]
[1674237882826,10.0,22.835,22.816,30.0]
[1674237883036,10.0,22.835,22.82,25.9]
[1674237883251,10.0,22.835,22.821,37.0]
[1674237883661,10.0,22.835,22.822,0.96]
[1674237883865,10.0,22.842,22.822,0.96]
[1674237884080,10.0,22.856,22.822,10.96]
[1674237884399,15.06928,22.851,22.823,48.17359819]
[1674237884614,15.06928,22.851,22.824,0.96]
[1674237884827,15.06928,22.851,22.824,32.13359819]
[1674237885025,32.83,22.85,22.825,11.17359819]
[1674237885243,10.0,22.848,22.826,20.0]
[1674237885557,37.90928,22.847,22.824,20.0]
[1674237885762,5.06928,22.846,22.817,11.17359819]
[1674237885977,168.34,22.845,22.817,11.17359819]
[1674237886196,22.06928,22.844,22.817,11.17359819]
[1674237886510,10.0,22.842,22.817,11.17359819]
[1674237886698,38.86928,22.841,22.817,11.17359819]
[1674237886909,5.06928,22.84,22.817,11.17359819]
[1674237887120,43.81,22.839,22.817,11.17359819]
[1674237887569,43.81,22.839,22.817,9.67359819]
[1674237887876,43.81,22.839,22.818,28.17359819]
[1674237888070,43.81,22.839,22.81,26.16]
[1674237888274,22.06928,22.838,22.811,11.17359819]
[1674237888488,22.06928,22.838,22.8,26.32]
[1674237888489,145.5,22.836,22.8,26.32]
[1674237888701,135.5,22.834,22.805,11.17359819]
[1674237888926,47.92928,22.833,22.805,11.17359819]
[1674237889125,10.0,22.831,22.805,11.17359819]
[1674237889336,38.88928,22.83,22.805,11.17359819]
[1674237889541,32.06928,22.829,22.805,11.17359819]